[Event "FIDE Women Candidates 2026"]
[White "Zhu,Jiner"]
[Black "Tan,Zhongyi"]
[Site "Agios Georgios Pegeia"]
[Round "1.1"]
[Annotator "RC"]
[Result "1/2-1/2"]
[Date "2026.03.29"]
[WhiteElo "2578"]
[BlackElo "2535"]
[PlyCount "82"]
[TimeControl "60"]

1. e4 {[%emt 0:0:4]} e5 {[%emt 0:0:8]} 2. Nf3 {[%emt 0:0:9]} Nc6 {[%emt 0:0:8]} 3. Bc4 {[%emt 0:0:19]} Nf6 {[%emt 0:0:26]} 4. d3 {[%emt 0:0:9]} Be7 {[%emt 0:0:30]} 5. O-O {[%emt 0:0:31]} O-O {[%emt 0:0:8]} 6. Nc3 {[%emt 0:0:8]} d6 {[%emt 0:0:12]} 7. a4 {[%emt 0:0:7]} Na5 {[%emt 0:1:56]} 8. Ba2 {[%emt 0:0:8]} c5 {[%emt 0:0:5]} 9. Bg5 {[%emt 0:1:36]} Nc6 {[%emt 0:0:54]} 10. Bxf6 {[%emt 0:0:12]} Bxf6 {[%emt 0:0:6]} 11. Nd5 {[%emt 0:0:10]} g6 {[%emt 0:0:37]} 12. c3 {[%emt 0:0:22]} Bg7 {[%emt 0:0:7]} 13. Qd2 {[%emt 0:3:48]} Bg4 {[%emt 0:0:15]} 14. Ng5 {[%emt 0:0:30]} h6 {[%emt 0:10:48]} 15. f4 {[%emt 0:1:14]} Kh8 {[%emt 0:12:46]} 16. Ne3 {[%emt 0:26:41]} hxg5 {[%emt 0:4:12]} 17. f5 {[%emt 0:0:10]} gxf5 {[%emt 0:8:50]} 18. exf5 {[%emt 0:0:10]} Bh5 {[%emt 0:0:7]} 19. g4 {[%emt 0:0:14]} e4 {[%emt 0:7:41]} 20. dxe4 {[%emt 0:5:8]} Ne5 {[%emt 0:0:7]} 21. h3 {[%emt 0:7:3]} Bg6 {[%emt 0:7:37]} 22. fxg6 {[%emt 0:0:52]} fxg6 {[%emt 0:0:9]} 23. Kg2 {[%emt 0:0:31]} Qd7 {[%emt 0:2:34]} 24. Nc4 {[%emt 0:28:54]} Rf4 {[%emt 0:10:3]} 25. Rxf4 {[%emt 0:3:3]} gxf4 {[%emt 0:0:5]} 26. Qxf4 {[%emt 0:1:39]} Qxa4 {[%emt 0:4:41]} 27. Nxe5 {[%emt 0:15:28]} dxe5 {[%emt 0:0:7]} 28. Qg5 {[%emt 0:0:48]} Qxe4+ {[%emt 0:5:30]} 29. Kg1 {[%emt 0:0:6]} c4 {[%emt 0:1:39]} 30. Qh4+ {[%emt 0:1:29]} Kg8 {[%emt 0:0:10]} 31. Re1 {[%emt 0:0:8]} Qf4 {[%emt 0:6:57]} 32. Rf1 {[%emt 0:0:48]} Qe3+ {[%emt 0:0:24]} 33. Qf2 {[%emt 0:1:14]} Qxf2+ {[%emt 0:0:18]} 34. Rxf2 {[%emt 0:0:8]} Rc8 {[%emt 0:0:49]} 35. Bb1 {[%emt 0:0:21]} Bh6 {[%emt 0:1:1]} 36. Re2 {[%emt 0:1:8]} Kf7 {[%emt 0:6:13]} 37. Rxe5 {[%emt 0:0:27]} Rd8 {[%emt 0:0:5]} 38. Ba2 {[%emt 0:1:59]} Rd1+ {[%emt 0:0:39]} 39. Kf2 {[%emt 0:0:11]} Rd2+ {[%emt 0:0:3]} 40. Ke1 {[%emt 0:1:29]} Rxb2 {[%emt 0:1:57]} 41. Bxc4+ {[%emt 0:30:5]} Kf6 {[%emt 0:32:28]} 1/2-1/2

[Event "FIDE Women Candidates 2026"]
[White "Goryachkina,Aleksandra"]
[Black "Lagno,Kateryna"]
[Site "Agios Georgios Pegeia"]
[Round "1.2"]
[Annotator "TA"]
[Result "1/2-1/2"]
[Date "2026.03.29"]
[WhiteElo "2534"]
[BlackElo "2508"]
[PlyCount "145"]
[TimeControl "60"]

{[%evp 18,144,4,3,31,33,28,17,33,8,7,7,1,0,29,41,24,16,47,49,88,95,93,96,82,85,119,93,134,143,238,88,91,87,71,47,51,41,61,57,52,52,51,44,43,37,64,40,56,41,60,37,47,43,42,0,45,42,65,22,48,0,40,0,65,65,65,65,65,65,65,65,93,65,65,65,65,65,65,65,65,65,65,65,65,65,65,65,65,65,65,65,65,65,65,65,65,65,65,65,65,0,65,65,65,65,68,36,36,36,68,8,8,8,22,22,22,22,22,22,22,0,0,0,0,0,0,0,0]} 1. e4 {[%emt 0:0:5]} e5 {[%emt 0:0:14]} 2. Nf3 {[%emt 0:0:22]} Nc6 {[%emt 0:0:12]} 3. Bb5 {[%emt 0:0:8]} a6 {[%emt 0:0:24]} 4. Ba4 {[%emt 0:0:11]} Nf6 {[%emt 0:0:7]} 5. O-O {[%emt 0:0:23]} Be7 {[%emt 0:0:16]} 6. d3 {[%emt 0:0:39]} b5 {[%emt 0:0:17]} 7. Bb3 {[%emt 0:0:6]} O-O {[%emt 0:0:25]} 8. Nc3 {[%emt 0:1:50]} d6 {[%emt 0:1:25]} 9. a3 {[%emt 0:0:32]} Bg4 {[%emt 0:2:3] 9...Na5 is the fancy move.} 10. Be3 {[%emt 0:0:55]} Qd7 {[%emt 0:0:7][%cal Oc6d4] C84: Closed Ruy Lopez: Unusual White 6th moves.} 11. h3 {[%emt 0:2:21] 11.Nd5 is not played anymore.} Be6 {[%emt 0:0:6]} 12. Nd5 {[%emt 0:6:34]} Bd8 {[%emt 0:2:57]} 13. Nxf6+ $5 $146 {[%emt 0:5:52][%mdl 8] New and interesting.} ({Predecessor:} 13. a4 b4 14. Qd2 Bxd5 15. exd5 Ne7 16. Qxb4 Nexd5 17. Qb7 Nxe3 18. Qxa8 Nxf1 19. Kxf1 {1-0 Bacrot,E (2692)-Michalik,P (2554) Bundesliga 1718 2017 (1.6)} )Bxf6 {[%emt 0:0:13]} 14. Bxe6 {[%emt 0:2:4]} Qxe6 {[%emt 0:0:38]} 15. Rc1 {[%emt 0:1:1] Not much happening anymore} d5 {[%emt 0:2:38]} 16. exd5 {[%emt 0:16:23]} Qxd5 {[%emt 0:0:15]} 17. c4 {[%emt 0:2:33]} bxc4 {[%emt 0:23:11]} 18. Rxc4 {[%emt 0:0:27]} Rfd8 {[%emt 0:0:34]} 19. Qc2 {[%emt 0:3:9]} Ne7 {[%emt 0:0:14]} 20. d4 {[%emt 0:3:22]} Ng6 {[%emt 0:28:14]} 21. Rc5 {[%emt 0:7:30]} (21. Rxc7 $6 exd4 22. Rd1 d3 $11 )Qe6 {[%emt 0:0:51][%cal Re5d4]} 22. Re1 {[%emt 0:3:59]} (22. Rxc7 exd4 23. Bd2 d3 $15 )Qd6 {[%emt 0:13:11]} 23. dxe5 {[%emt 0:13:37]} (23. Rxc7 exd4 24. Rd1 d3 $14 )Nxe5 {[%emt 0:0:4]} (23... Bxe5 $16 {was worth a try.} 24. Nxe5 Nxe5 25. Rxc7 (25. Bf4 Nf3+ 26. gxf3 Qxf4 $14 )Rab8 )24. Nxe5 {[%emt 0:1:40]} ({Stronger than} 24. Rxc7 Nxf3+ 25. gxf3 Bxb2 $11 )(24. Rxe5 $18 {is the precise move to win.} Bxe5 25. Bc5 Bh2+ (25... Qg6 $2 26. Qxg6 hxg6 27. Rxe5 $18 )26. Nxh2 )Bxe5 $16 {[%emt 0:0:4]} 25. b4 {[%emt 0:1:6]} Re8 {[%emt 0:6:10]} 26. Rd1 {[%emt 0:6:2]} Qf6 {[%emt 0:0:15]} 27. Rcd5 {[%emt 0:2:55]} h6 {[%emt 0:4:18]} 28. Bd4 {[%emt 0:2:5] White has more active pieces.} Bxd4 {[%emt 0:0:39]} 29. R5xd4 {[%emt 0:0:44]} Rad8 {[%emt 0:5:18]} 30. Rxd8 {[%emt 0:3:20]} Rxd8 $14 {[%emt 0:0:2][%mdl 4096] Endgame KQR-KQR} 31. Re1 {[%emt 0:8:56]} Qd6 {[%emt 0:2:37]} 32. Qc3 {[%emt 0:0:35]} Kh7 {[%emt 0:2:18]} 33. Qc4 {[%emt 0:1:2]} Rd7 {[%emt 0:0:20]} 34. Qe4+ {[%emt 0:1:27]} Kg8 {[%emt 0:0:57]} 35. Qe8+ {[%emt 0:0:12]} Kh7 {[%emt 0:0:3]} 36. Qe4+ {[%emt 0:0:3]} Kg8 {[%emt 0:0:2]} 37. Qe5 {[%emt 0:1:32]} Qd3 {[%emt 0:3:17]} 38. h4 {[%emt 0:0:45]} Kh7 {[%emt 0:1:39]} 39. Qe8 {[%emt 0:1:34]} (39. Qf4 $14 )h5 {[%emt 0:1:12]} 40. Qe5 {[%emt 0:1:13]} Qd5 {[%emt 0:0:30]} (40... Rd5 $11 41. Qxc7 Qxa3 )41. Qxd5 {[%emt 0:11:35]} Rxd5 {[%emt 0:0:4] KR-KR} 42. Rc1 {[%emt 0:0:31]} a5 {[%emt 0:3:37]} 43. Rxc7 {[%emt 0:2:59]} axb4 {[%emt 0:0:7]} 44. axb4 {[%emt 0:0:2]} (44. Rxf7 bxa3 45. Ra7 Rd3 $11 )Rd1+ {[%emt 0:0:5]} 45. Kh2 {[%emt 0:0:3]} Rd4 {[%emt 0:0:3][%csl LRb4,LRh4]} 46. g3 {[%emt 0:1:12]} ({Don't play} 46. Rxf7 $6 Rxh4+ 47. Kg3 Rg4+ 48. Kf3 Rxb4 $11 )Rxb4 {[%emt 0:0:8]} 47. Rxf7 {[%emt 0:0:2]} Kh6 {[%emt 0:0:14]} 48. Kg2 {[%emt 0:0:11]} Rb3 {[%emt 0:1:28]} 49. Rd7 {[%emt 0:0:12]} Ra3 {[%emt 0:0:18]} 50. Rd6+ {[%emt 0:0:11]} Kh7 {[%emt 0:0:45]} 51. Kf1 {[%emt 0:0:11]} Ra2 {[%emt 0:0:30]} 52. Ke1 {[%emt 0:0:5]} g6 {[%emt 0:0:54]} 53. Rd7+ {[%emt 0:0:25]} Kh6 {[%emt 0:0:15]} 54. Rf7 {[%emt 0:0:57]} Rb2 {[%emt 0:0:20]} 55. Kf1 {[%emt 0:0:30]} Ra2 {[%emt 0:0:13]} 56. Kg2 {[%emt 0:0:17]} Ra3 {[%emt 0:0:21]} 57. Re7 {[%emt 0:0:45]} Rb3 {[%emt 0:0:18]} 58. Re3 {[%emt 0:1:47]} Rb2 {[%emt 0:0:12]} 59. Re7 {[%emt 0:1:4]} Rb3 $1 {[%emt 0:0:5]} 60. Rd7 {[%emt 0:0:15]} Ra3 {[%emt 0:0:9]} 61. f3 {[%emt 0:0:19]} Ra2+ {[%emt 0:0:36]} 62. Kh3 {[%emt 0:0:11]} Ra3 {[%emt 0:0:19]} 63. Rf7 {[%emt 0:0:13]} Rb3 {[%emt 0:0:31]} 64. g4 {[%emt 0:0:56]} (64. Kg2 $14 )hxg4+ $11 {[%emt 0:0:6] The position is equal.} 65. Kxg4 {[%emt 0:0:3]} Rb5 {[%emt 0:1:56]} 66. Re7 {[%emt 0:0:24]} Ra5 {[%emt 0:0:9]} 67. Re3 {[%emt 0:1:26]} Rb5 {[%emt 0:0:15]} 68. Re4 {[%emt 0:0:51]} Ra5 {[%emt 0:0:40]} 69. f4 {[%emt 0:0:17]} Ra1 {[%emt 0:0:34]} 70. Re6 {[%emt 0:1:3]} Rg1+ {[%emt 0:0:20]} 71. Kh3 {[%emt 0:0:14]} Rf1 {[%emt 0:0:23]} 72. Kg3 {[%emt 0:0:2]} Kg7 {[%emt 0:4:9]} 73. Re5 {[%emt 0:0:23] Weighted Error Value: White=0.12 (very precise) /Black=0.14 (very precise)   Mistake:       	White=3     	Black=2      Inaccurate:     	White=3     	Black=8      OK:         	White=2     	Black=5      Best:        	---       	Black=1      Strong:       	---       	Black=1} 1/2-1/2

[Event "FIDE Women Candidates 2026"]
[White "Vaishali,Rameshbabu"]
[Black "Assaubayeva,Bibisara"]
[Site "Agios Georgios Pegeia"]
[Round "1.3"]
[Annotator "RC"]
[Result "1/2-1/2"]
[Date "2026.03.29"]
[WhiteElo "2470"]
[BlackElo "2516"]
[PlyCount "81"]
[TimeControl "60"]

1. e4 {[%emt 0:0:23]} c5 {[%emt 0:0:7]} 2. Nf3 {[%emt 0:0:8]} Nc6 {[%emt 0:0:5]} 3. d4 {[%emt 0:0:7]} cxd4 {[%emt 0:0:5]} 4. Nxd4 {[%emt 0:0:6]} e5 {[%emt 0:0:5]} 5. Ne2 {[%emt 0:0:49]} Nf6 {[%emt 0:4:55]} 6. Nbc3 {[%emt 0:0:16]} Bc5 {[%emt 0:0:34]} 7. Ng3 {[%emt 0:0:22]} d6 {[%emt 0:5:6]} 8. Na4 {[%emt 0:1:20]} Bb4+ {[%emt 0:1:43]} 9. c3 {[%emt 0:0:8]} Ba5 {[%emt 0:0:11]} 10. Be2 {[%emt 0:2:27]} a6 {[%emt 0:1:41]} 11. b4 {[%emt 0:0:45]} Bc7 {[%emt 0:0:7]} 12. O-O {[%emt 0:1:8]} O-O {[%emt 0:2:19]} 13. Qd3 {[%emt 0:22:54]} Be6 {[%emt 0:7:57]} 14. Rd1 {[%emt 0:0:55]} h6 {[%emt 0:3:47]} 15. Be3 {[%emt 0:7:7]} Rb8 {[%emt 0:12:51]} 16. Nb2 {[%emt 0:7:48]} b5 {[%emt 0:3:31]} 17. a3 {[%emt 0:14:18]} Ng4 {[%emt 0:7:46]} 18. Bxg4 {[%emt 0:6:10]} Bxg4 {[%emt 0:0:20]} 19. Rd2 {[%emt 0:0:43]} Ne7 {[%emt 0:13:26]} 20. c4 {[%emt 0:5:57]} Be6 {[%emt 0:1:55]} 21. Rc1 {[%emt 0:11:18]} f5 {[%emt 0:6:30]} 22. exf5 {[%emt 0:0:48]} Nxf5 {[%emt 0:0:27]} 23. Nxf5 {[%emt 0:6:19]} Rxf5 {[%emt 0:0:15]} 24. cxb5 {[%emt 0:2:2]} axb5 {[%emt 0:1:57]} 25. Rc6 {[%emt 0:3:32]} Rf7 {[%emt 0:2:52]} 26. Qc3 {[%emt 0:4:29]} Rc8 {[%emt 0:4:41]} 27. a4 {[%emt 0:1:3]} bxa4 {[%emt 0:11:48]} 28. Nc4 {[%emt 0:0:30]} Bd7 {[%emt 0:2:5]} 29. Nxd6 {[%emt 0:0:33]} Bxd6 {[%emt 0:0:10]} 30. Rdxd6 {[%emt 0:0:11]} Rxc6 {[%emt 0:0:7]} 31. Qxc6 {[%emt 0:0:15]} Bxc6 {[%emt 0:0:7]} 32. Rxd8+ {[%emt 0:0:5]} Rf8 {[%emt 0:0:5]} 33. Rxf8+ {[%emt 0:1:32]} Kxf8 {[%emt 0:0:5]} 34. f4 {[%emt 0:0:29]} exf4 {[%emt 0:0:5]} 35. Bxf4 {[%emt 0:0:4]} a3 {[%emt 0:0:17]} 36. Kf2 {[%emt 0:0:37]} Kf7 {[%emt 0:0:10]} 37. Bc1 {[%emt 0:0:37]} a2 {[%emt 0:0:5]} 38. Bb2 {[%emt 0:0:2]} g6 {[%emt 0:0:7]} 39. g3 {[%emt 0:0:4]} Ke6 {[%emt 0:0:4]} 40. Ke3 {[%emt 0:0:5]} Kd5 {[%emt 0:0:29]} 41. Ba1 {[%emt 0:30:16]} 1/2-1/2

[Event "FIDE Women Candidates 2026"]
[White "Divya Deshmukh"]
[Black "Muzychuk,Anna"]
[Site "Agios Georgios Pegeia"]
[Round "1.4"]
[Annotator "RC"]
[Result "1/2-1/2"]
[Date "2026.03.29"]
[WhiteElo "2497"]
[BlackElo "2522"]
[PlyCount "69"]
[TimeControl "60"]

1. e4 {[%emt 0:0:4]} e5 {[%emt 0:0:8]} 2. Nf3 {[%emt 0:0:8]} Nc6 {[%emt 0:0:10]} 3. d4 {[%emt 0:0:5]} exd4 {[%emt 0:0:16]} 4. Nxd4 {[%emt 0:0:8]} Nf6 {[%emt 0:1:9]} 5. Nxc6 {[%emt 0:0:6]} bxc6 {[%emt 0:0:6]} 6. e5 {[%emt 0:0:4]} Qe7 {[%emt 0:0:27]} 7. Qe2 {[%emt 0:0:5]} Nd5 {[%emt 0:0:11]} 8. g3 {[%emt 0:0:6]} g6 {[%emt 0:2:21]} 9. c4 {[%emt 0:0:28]} Ba6 {[%emt 0:0:24]} 10. b3 {[%emt 0:0:29]} Bg7 {[%emt 0:0:24]} 11. Bb2 {[%emt 0:0:7]} O-O {[%emt 0:1:6]} 12. Bh3 {[%emt 0:0:8]} Rfe8 {[%emt 0:26:43]} 13. O-O {[%emt 0:0:42]} Bxe5 {[%emt 0:1:11]} 14. Qxe5 {[%emt 0:0:40]} Qxe5 {[%emt 0:0:5]} 15. Bxe5 {[%emt 0:0:3]} Rxe5 {[%emt 0:0:8]} 16. Bxd7 {[%emt 0:0:11]} Nb4 {[%emt 0:10:15]} 17. Nc3 {[%emt 0:5:7]} Bc8 {[%emt 0:7:33]} 18. Rfd1 {[%emt 0:12:15]} Kf8 {[%emt 0:8:38]} 19. Kf1 {[%emt 0:8:26]} Nd5 {[%emt 0:8:57]} 20. Bxc6 {[%emt 0:26:39]} Bh3+ {[%emt 0:0:17]} 21. Kg1 {[%emt 0:0:2]} Nxc3 {[%emt 0:0:10]} 22. Bxa8 {[%emt 0:0:2]} Nxd1 {[%emt 0:0:48]} 23. Rxd1 {[%emt 0:0:1]} Re2 {[%emt 0:1:5]} 24. Bg2 {[%emt 0:12:28]} Bf5 {[%emt 0:3:4]} 25. h4 {[%emt 0:7:52]} Rxa2 {[%emt 0:3:40]} 26. b4 {[%emt 0:1:18]} Rb2 {[%emt 0:7:36]} 27. Rd5 {[%emt 0:9:42]} Rxb4 {[%emt 0:4:24]} 28. Rc5 {[%emt 0:0:1]} Be6 {[%emt 0:1:16]} 29. Rxc7 {[%emt 0:0:52]} Rxc4 {[%emt 0:0:12]} 30. Rxa7 {[%emt 0:0:6]} Rc1+ {[%emt 0:0:6]} 31. Kh2 {[%emt 0:0:3]} Rc2 {[%emt 0:0:6]} 32. Kg1 {[%emt 0:0:1]} Rc1+ {[%emt 0:0:8]} 33. Kh2 {[%emt 0:0:12]} Rc2 {[%emt 0:0:1]} 34. Kg1 {[%emt 0:0:7]} Rc1+ {[%emt 0:0:4]} 35. Kh2 {[%emt 0:0:4]} 1/2-1/2

[Event "FIDE Women Candidates 2026"]
[White "Lagno,Kateryna"]
[Black "Zhu,Jiner"]
[Site "Agios Georgios Pegeia"]
[Round "2.1"]
[Annotator "TA"]
[Result "1/2-1/2"]
[Date "2026.03.30"]
[WhiteElo "2508"]
[BlackElo "2578"]
[PlyCount "68"]
[TimeControl "60"]

{[%evp 11,68,12,32,0,0,-25,17,14,-3,-18,-15,-25,-11,-37,0,-47,-41,-59,-54,-67,-63,-97,-35,-87,-60,-131,-135,-159,-96,-83,-81,-94,-80,-115,-104,-114,-112,-124,-74,-210,-228,-277,-268,-265,0,-271,0,0,0,0,0,0,0,0,0,0,0,0,0]} 1. e4 {[%emt 0:0:3]} e6 {[%emt 0:0:10]} 2. d4 {[%emt 0:0:19]} d5 {[%emt 0:0:7]} 3. Nd2 {[%emt 0:0:20]} c5 {[%emt 0:0:15]} 4. Ngf3 {[%emt 0:0:36]} cxd4 {[%emt 0:0:23]} 5. exd5 {[%emt 0:0:12]} Qxd5 {[%emt 0:0:10]} 6. Bc4 {[%emt 0:0:13]} Qd6 {[%emt 0:0:26]} 7. Ne4 {[%emt 0:0:51] Against Nf6. C07: French Tarrasch: 3...c5, 4 Ngf3 and 4 exd5 Qxd5.} Qb4+ {[%emt 0:0:48]} 8. Nfd2 {[%emt 0:0:5]} Nf6 {[%emt 0:10:8]} 9. Nxf6+ {[%emt 0:4:17]} gxf6 {[%emt 0:0:5]} 10. O-O {[%emt 0:0:36] White sacrificed a pawn} Nc6 {[%emt 0:0:52]} 11. Re1 $146 {[%emt 0:22:0][%cal Oc2c3]} ({Predecessor:} 11. c3 Qb6 12. Ne4 Be7 13. Qh5 Bd7 14. Qh6 O-O-O 15. Nxf6 Qc5 16. Bb3 dxc3 17. bxc3 {½-½ Hera,I (2522)-Badacsonyi,S (2298) London Classic op 14th 2024 (4)} )Bd7 {[%emt 0:16:41]} 12. c3 {[%emt 0:1:59]} Qb6 {[%emt 0:10:17]} 13. cxd4 {[%emt 0:18:44]} (13. Ne4 $11 Be7 14. Qf3 dxc3 15. Qxc3 (15. Nxf6+ Bxf6 16. Qxf6 Qd4 $15 ))Qxd4 $15 {[%emt 0:1:24]} 14. Ne4 {[%emt 0:18:36]} Be7 {[%emt 0:0:33]} 15. Qe2 {[%emt 0:0:44]} f5 {[%emt 0:27:50]} 16. Nc3 {[%emt 0:2:6]} Qg4 {[%emt 0:0:12]} (16... Qg7 $17 17. Bf4 Rg8 )17. f3 {[%emt 0:4:15]} ({White should play} 17. Qxg4 $15 fxg4 18. Bf4 )Qg7 {[%emt 0:0:25]} 18. Bf4 {[%emt 0:2:44] [#]} (18. Rd1 $15 )Nd4 $1 $17 {[%emt 0:10:13]} 19. Qf2 {[%emt 0:3:43] Threatens to win with Be5.} Nxf3+ {[%emt 0:2:51]} 20. Qxf3 {[%emt 0:0:11]} Qd4+ {[%emt 0:0:4]} 21. Kh1 {[%emt 0:0:36]} Qxc4 {[%emt 0:0:6]} 22. Qg3 {[%emt 0:1:14] Against Rg8} Bc6 {[%emt 0:7:58]} 23. Rad1 {[%emt 0:1:0]} Bf6 {[%emt 0:1:3] Inhibits Qg7.} 24. h3 {[%emt 0:13:25]} h5 {[%emt 0:5:52]} ({Black should try} 24... Rf8 25. Kg1 Bd4+ 26. Be3 Bxe3+ (26... Bxc3 27. bxc3 Qxc3 28. Re2 $11 )27. Rxe3 f4 )25. h4 {[%emt 0:0:45]} (25. Be5 $17 f4 26. Bxf4 )Rd8 $19 {[%emt 0:1:19]} 26. Bg5 {[%emt 0:1:52]} Bxg5 {[%emt 0:1:0]} 27. Qxg5 {[%emt 0:0:4]} Rc8 {[%emt 0:2:11] [#]} (27... Rd7 $19 28. Rxd7 Kxd7 )28. Rd2 $2 {[%emt 0:1:23][%mdl 8192]} (28. Nb5 $1 $11 Qxb5 29. Rxe6+ fxe6 30. Qg6+ Kf8 31. Qf6+ Kg8 32. Qxe6+ (32. Qg6+ Kf8 $11 )Kg7 (32... Kf8 33. Rd8+ Be8 34. Qf6+ Kg8 35. Qg6+ Kf8 36. Qf6+ Kg8 37. Qg6+ Kf8 38. Qf6+ $11 )33. Qe7+ Kg8 34. Qe6+ )Qb4 $2 {[%emt 0:0:34]} (28... Qg4 $19 {...Rg8 is the strong threat.} 29. Qf6 O-O (29... Rh6 30. Rxe6+ fxe6 31. Qxh6 $15 ))29. Rxe6+ $11 {[%emt 0:0:49] The position is equal.} fxe6 {[%emt 0:0:24]} 30. Qg6+ {[%emt 0:0:3]} Kf8 {[%emt 0:0:12]} 31. Qf6+ {[%emt 0:0:8]} Kg8 {[%emt 0:0:4]} 32. Qg6+ {[%emt 0:1:10]} Kf8 {[%emt 0:0:5]} 33. Qf6+ {[%emt 0:0:2]} Kg8 {[%emt 0:0:3]} 34. Qg6+ {[%emt 0:1:41]} Kf8 {White happily takes the draw.   Weighted Error Value: White=0.35/Black=0.42   Loses game:     	White=1     	---        Missed win:     	---       	Black=2      Mistake:       	White=4     	Black=3      Inaccurate:     	White=3     	Black=3      OK:         	White=6     	Black=4      Best:        	---       	Black=2      Strong:       	---       	Black=1} 1/2-1/2

[Event "FIDE Women Candidates 2026"]
[White "Muzychuk,Anna"]
[Black "Tan,Zhongyi"]
[Site "Agios Georgios Pegeia"]
[Round "2.2"]
[Annotator "TA"]
[Result "1/2-1/2"]
[Date "2026.03.30"]
[WhiteElo "2522"]
[BlackElo "2535"]
[PlyCount "64"]
[TimeControl "60"]

{[%evp 16,63,22,27,16,32,20,13,18,11,25,25,34,25,19,27,55,7,13,25,33,0,0,0,0,0,0,0,0,0,0,0,0,0,0,0,12,0,0,0,0,0,0,0,0,0,0,0,0,0]} 1. e4 {[%emt 0:0:2]} e5 {[%emt 0:0:6]} 2. Nf3 {[%emt 0:0:6]} Nf6 {[%emt 0:0:6][%cal Bg8f6,Bf6e4,Be4c3][%mdl 32]} 3. Nxe5 {[%emt 0:0:37]} d6 {[%emt 0:0:7]} 4. Nf3 {[%emt 0:0:7]} Nxe4 {[%emt 0:0:7]} 5. d4 {[%emt 0:0:29]} d5 {[%emt 0:0:7]} 6. Bd3 {[%emt 0:0:7]} Be7 {[%emt 0:0:6]} 7. O-O {[%emt 0:0:48]} Nc6 {[%emt 0:0:9]} 8. Nc3 {[%emt 0:3:48] 8.Nbd2 is setting a new trend.} Bf5 {[%emt 0:2:4]} 9. Re1 {[%emt 0:0:42][%cal Oc3d5] and Nxd5! would now be decisive} Nxc3 {[%emt 0:0:7] C42: Petroff Defence: 3 Nxe5 and unusual White 3rd moves.} 10. bxc3 {[%emt 0:0:2]} Bxd3 {[%emt 0:0:8]} 11. Qxd3 {[%emt 0:0:5]} O-O {[%emt 0:0:8]} 12. Rb1 {[%emt 0:2:34]} b6 {[%emt 0:0:13]} 13. c4 {[%emt 0:3:57]} Re8 {[%emt 0:18:16]} 14. Bd2 {[%emt 0:6:8]} Qd7 {[%emt 0:18:19]} 15. cxd5 {[%emt 0:1:33]} Qxd5 {[%emt 0:0:6][%cal Oe7f6]} 16. c4 {[%emt 0:20:38]} (16. Rb5 $14 {should be considered.} Qd7 17. c4 )Qd7 $146 {[%emt 0:1:45]} ({Predecessor:} 16... Qd6 17. d5 Bf6 18. g3 Ne5 19. Nxe5 Bxe5 20. Qf5 Qg6 21. Qf3 Bd6 22. Kg2 {½-½ Steiger,W-De Buhr,G Team-ch L21K1-R(1-3) 2023} )17. d5 {[%emt 0:5:36]} Bf6 {[%emt 0:1:5]} 18. h3 {[%emt 0:1:30]} Ne5 {[%emt 0:1:36] The position is equal.} 19. Nxe5 {[%emt 0:0:4]} Bxe5 {[%emt 0:0:10]} 20. Re4 {[%emt 0:1:37]} Re7 {[%emt 0:1:56]} 21. Rbe1 {[%emt 0:1:12]} Rae8 {[%emt 0:0:12]} 22. Bb4 {[%emt 0:4:35]} Bd6 {[%emt 0:1:13]} 23. Bc3 {[%emt 0:0:31]} Rxe4 {[%emt 0:2:9]} 24. Rxe4 {[%emt 0:0:1]} Rxe4 {[%emt 0:0:8]} 25. Qxe4 {[%emt 0:0:2][%mdl 4096] Endgame KQB-KQB} h6 {[%emt 0:4:44]} 26. g4 {[%emt 0:4:30]} Qa4 {[%emt 0:8:41]} 27. Kg2 {[%emt 0:3:16]} Qa3 {[%emt 0:0:29]} 28. Qe8+ {[%emt 0:4:58]} Kh7 {[%emt 0:0:42]} 29. Qe4+ {[%emt 0:0:20]} Kg8 {[%emt 0:0:6]} 30. Qe8+ {[%emt 0:0:5]} Kh7 {[%emt 0:0:4]} 31. Qe4+ {[%emt 0:0:5]} Kg8 {[%emt 0:0:6]} 32. Qe8+ {[%emt 0:0:8]} Kh7 {[%emt 0:0:11] Weighted Error Value: White=0.05 (flawless) /Black=0.01 (flawless)   Mistake:       	White=1     	---        Inaccurate:     	White=1     	Black=1      OK:         	White=2     	Black=9      Best:        	---       	Black=2} 1/2-1/2

[Event "FIDE Women Candidates 2026"]
[White "Divya Deshmukh"]
[Black "Vaishali,Rameshbabu"]
[Site "Agios Georgios Pegeia"]
[Round "2.3"]
[Annotator "TA"]
[Result "1/2-1/2"]
[Date "2026.03.30"]
[WhiteElo "2497"]
[BlackElo "2470"]
[PlyCount "87"]
[TimeControl "60"]

{[%evp 9,86,14,15,23,18,15,19,16,24,19,25,25,27,22,23,14,16,12,20,18,23,22,18,19,21,0,0,0,0,-10,0,0,0,0,0,0,0,0,0,0,0,0,0,0,0,0,15,15,15,18,13,0,8,0,27,27,23,27,26,26,162,162,169,170,166,11,7,8,8,8,620,7,7,7,4,0,4,5,5]} 1. c4 {[%emt 0:0:3]} e6 {[%emt 0:0:31]} 2. Nc3 {[%emt 0:0:6]} d5 {[%emt 0:0:7]} 3. d4 {[%emt 0:0:5]} h6 {[%emt 0:0:12]} 4. cxd5 {[%emt 0:3:39]} exd5 {[%emt 0:0:3]} 5. Bf4 {[%emt 0:0:4]} c6 {[%emt 0:0:24]} 6. e3 {[%emt 0:1:11] D31: Queen's Gambit Declined: Semi-Slav without ...Nf6 (+ Marshall Gambit and Noteboom) and Exchange Variation lines without ...Nf6.} Bd6 {[%emt 0:0:21]} 7. Bxd6 {[%emt 0:2:50]} Qxd6 {[%emt 0:0:3]} 8. Bd3 {[%emt 0:0:32]} Ne7 {[%emt 0:0:40]} 9. Qc2 {[%emt 0:3:57]} O-O {[%emt 0:8:38]} 10. Nf3 {[%emt 0:5:57]} Nd7 {[%emt 0:2:23]} 11. O-O {[%emt 0:4:48]} Nf6 {[%emt 0:0:53]} 12. h3 {[%emt 0:2:18]} g6 {[%emt 0:4:42]} 13. Rab1 $146 {[%emt 0:9:34]} ({Predecessor:} 13. Qb3 Rb8 14. Rfc1 Bf5 15. Be2 Rfc8 16. Qa4 Nd7 17. a3 Re8 18. Qd1 Nc8 19. Na4 {1-0 Sjugirov,S (2705)-Nagy,G (2439) HUN-chT 2324 2023 (1.1)} )a5 {[%emt 0:10:2]} 14. Na4 {[%emt 0:7:7]} Bf5 {[%emt 0:2:54]} 15. Nc5 {[%emt 0:0:47]} Qc7 {[%emt 0:15:9]} 16. Rfc1 {[%emt 0:3:19]} Nd7 {[%emt 0:19:45]} 17. Na4 {[%emt 0:10:21][%cal Bc5a4,Ba4c3,Bc3e2,Be2f4][%mdl 32]} Rfe8 {[%emt 0:5:20]} 18. Nc3 {[%emt 0:10:12]} Qd6 {[%emt 0:4:54]} 19. Ne2 {[%emt 0:0:20]} Qf6 {[%emt 0:5:42]} 20. Nf4 {[%emt 0:3:16]} Bxd3 {[%emt 0:3:46]} 21. Nxd3 {[%emt 0:0:40]} Nf5 {[%emt 0:0:6]} 22. b4 {[%emt 0:2:17]} Nd6 {[%emt 0:0:51]} 23. a4 {[%emt 0:12:17]} Qe7 {[%emt 0:3:35]} 24. bxa5 {[%emt 0:1:18]} Rxa5 {[%emt 0:0:6]} 25. Rb4 {[%emt 0:0:7]} Rea8 {[%emt 0:1:16]} 26. Rcb1 {[%emt 0:1:48]} R8a7 {[%emt 0:1:9]} 27. Qb3 {[%emt 0:2:49]} Qd8 {[%emt 0:5:20]} 28. Nfe5 {[%emt 0:1:4]} Kg7 {[%emt 0:0:43]} 29. Qd1 {[%emt 0:8:22]} Qe7 {[%emt 0:1:6]} 30. Qb3 {[%emt 0:0:57]} Qd8 {[%emt 0:0:5]} 31. Qd1 {[%emt 0:0:32]} Qe7 {[%emt 0:0:4]} 32. Nxd7 {[%emt 0:0:28]} Qxd7 {[%emt 0:0:2]} 33. Nc5 {[%emt 0:0:50]} Qc8 {[%emt 0:3:22]} 34. Qf3 {[%emt 0:0:56]} Ne4 {[%emt 0:1:51] Prevents Qg3.} 35. Rxb7 $18 {[%emt 0:2:35]} Rxb7 {[%emt 0:0:26]} 36. Rxb7 {[%emt 0:0:10]} Ng5 {[%emt 0:0:14]} 37. Qg3 {[%emt 0:0:35] [#]} (37. Qg4 $18 Qxg4 38. hxg4 )Rxc5 $11 {[%emt 0:0:34][%cal Ba5c5,Bc5c1,Bc1a1][%mdl 32]} 38. Qe5+ {[%emt 0:0:5]} Kh7 {[%emt 0:0:6]} 39. Rb8 {[%emt 0:0:46]} Rc1+ {[%emt 0:0:19]} 40. Kh2 {[%emt 0:0:0]} Qxh3+ {[%emt 0:0:34] The position is equal.} 41. gxh3 {[%emt 0:30:4][%csl Gb8][%cal Re5h8] [#]} Nf3+ {[%emt 0:30:3]} 42. Kg2 {[%emt 0:0:0][%csl Ge5][%cal Rb8h8]} Nxe5 {[%emt 0:0:0]} 43. dxe5 {[%emt 0:0:0]} Ra1 {[%emt 0:0:0]} 44. Ra8 {[%emt 0:0:0] Weighted Error Value: White=0.10 (very precise) /Black=0.08 (flawless)   Mistake:       	White=1     	Black=1      OK:         	White=8     	Black=11     Best:        	---       	Black=1} 1/2-1/2